fUSD/lending_fUSD_20240425
["ID","MTS","AMOUNT","RATE_DAILY","PERIOD"]
[323527455,1714071042148,-500.0,0.00011232,2]
[323527456,1714071042157,-500.0,0.00011232,2]
[323527457,1714071042167,-500.0,0.00011232,2]
[323527458,1714071042177,-500.0,0.00011232,2]
[323527459,1714071042186,-500.0,0.00011232,2]
[323527460,1714071042194,-500.0,0.00011232,2]
[323527461,1714071042203,-610.45,0.00011232,2]
[323527462,1714071042213,-500.0,0.00011232,2]
[323527463,1714071042222,-500.0,0.00011232,2]
[323527464,1714071042232,-500.0,0.00011232,2]
[323527465,1714071042241,-500.0,0.00011232,2]
[323527466,1714071042250,-649.73,0.00011232,2]
[323527467,1714071042259,-500.0,0.00011232,2]
[323527468,1714071042269,-500.0,0.00011232,2]
[323527469,1714071042278,-500.0,0.00011232,2]
[323527470,1714071042287,-688.12,0.00011232,2]
[323527471,1714071042296,-500.0,0.00011232,2]
[323527472,1714071042306,-779.77,0.00011232,2]
[323527473,1714071042315,-500.0,0.00011232,2]
[323527474,1714071042324,-695.13,0.00011232,2]
[323527475,1714071042333,-500.0,0.00011232,2]
[323527476,1714071042342,-500.0,0.00011232,2]
[323527477,1714071042351,-539.24,0.00011232,2]
[323527478,1714071042361,-500.0,0.00011232,2]
[323527479,1714071042370,-500.0,0.00011232,2]
[323527480,1714071042379,-681.29,0.00011232,2]
[323527481,1714071042389,-500.0,0.00011232,2]
[323527482,1714071042398,-500.0,0.00011232,2]
[323527483,1714071042407,-634.39,0.00011232,2]
[323527484,1714071042418,-500.0,0.00011232,2]
[323527485,1714071042427,-500.0,0.00011232,2]
[323527486,1714071042437,-500.0,0.00011232,2]
[323527487,1714071042446,-500.0,0.00011232,2]
[323527488,1714071042455,-707.13,0.00011232,2]
[323527489,1714071042465,-500.0,0.00011232,2]
[323527490,1714071042474,-500.0,0.00011232,2]
[323527491,1714071042483,-500.0,0.00011232,2]
[323527492,1714071042496,-500.0,0.00011232,2]
[323527493,1714071042505,-500.0,0.00011232,2]
[323527494,1714071042515,-500.0,0.00011232,2]
[323527495,1714071042524,-873.91,0.00011232,2]
[323527496,1714071042535,-655.18,0.00011232,2]
[323527497,1714071042544,-500.0,0.00011232,2]
[323527498,1714071042553,-378.54441445,0.00011232,2]
[323527499,1714071042565,-697.1,0.00011232,2]
[323527500,1714071042575,-500.0,0.00011232,2]
[323527501,1714071042586,-500.0,0.00011232,2]
[323527502,1714071042595,-500.0,0.00011232,2]
[323527503,1714071042605,-500.0,0.00011232,2]
[323527504,1714071042614,-339.57,0.00011232,2]
[323527505,1714071042623,-500.0,0.00011232,2]
[323527506,1714071042634,-500.0,0.00011232,2]
[323527507,1714071042644,-500.0,0.00011232,2]
[323527508,1714071042654,-500.0,0.00011232,2]
[323527509,1714071042664,-500.0,0.00011232,2]
[323527510,1714071042674,-769.99,0.00011232,2]
[323527511,1714071042683,-586.62,0.00011232,2]
[323527512,1714071042692,-500.0,0.00011232,2]
[323527513,1714071042701,-500.0,0.00011232,2]
[323527514,1714071042711,-672.29,0.00011232,2]
[323527515,1714071042720,-327.33,0.00011232,2]
[323527516,1714071042731,-880.8,0.00011232,2]
[323527521,1714071042930,-500.0,0.00011232,2]
[323527522,1714071042940,-500.0,0.00011232,2]
[323527523,1714071042950,-667.59,0.00011232,2]
[323527524,1714071042960,-500.0,0.00011232,2]
[323527525,1714071042970,-512.43,0.00011232,2]
[323527526,1714071042980,-500.0,0.00011232,2]
[323527527,1714071042989,-150.0,0.00011232,2]
[323527528,1714071042999,-500.0,0.00011232,2]
[323527529,1714071043008,-550.22,0.00011232,2]
[323527530,1714071043018,-500.0,0.00011232,2]
[323527531,1714071043027,-500.0,0.00011232,2]
[323527532,1714071043037,-500.0,0.00011232,2]
[323527533,1714071043046,-500.0,0.00011232,2]
[323527535,1714071043057,-500.0,0.00011232,2]
[323527537,1714071043066,-500.0,0.00011232,2]
[323527540,1714071043076,-553.94,0.00011232,2]
[323527541,1714071043086,-500.0,0.00011232,2]
[323527542,1714071043095,-500.0,0.00011232,2]
[323527543,1714071043105,-500.0,0.00011232,2]
[323527545,1714071043115,-662.77,0.00011232,2]
[323527546,1714071043126,-400.10854492,0.00011232,2]
[323527547,1714071043136,-500.0,0.00011232,2]
[323527548,1714071043146,-500.0,0.00011232,2]
[323527549,1714071043157,-721.74,0.00011232,2]
[323527550,1714071043167,-841.6,0.00011232,2]
[323527551,1714071043176,-500.0,0.00011232,2]
[323527552,1714071043186,-500.0,0.00011232,2]
[323527553,1714071043197,-550.03,0.00011232,2]
[323527554,1714071043207,-500.0,0.00011232,2]
[323527555,1714071043216,-500.0,0.00011232,2]
[323527557,1714071043226,-775.82,0.00011232,2]
[323527559,1714071043235,-500.0,0.00011232,2]
[323527560,1714071043245,-564.02245961,0.00011232,2]
[323527562,1714071043254,-500.0,0.00011232,2]
[323527564,1714071043264,-500.0,0.00011232,2]
[323527565,1714071043274,-4132.01,0.00011232,2]
[323527566,1714071043283,-4781.68,0.00011232,2]
[323527567,1714071043292,-500.0,0.00011232,2]
[323527568,1714071043302,-206.61181933,0.00011232,2]
[323527569,1714071043314,-527.0,0.00011232,2]
[323527570,1714071043324,-556.67,0.00011232,2]
[323527571,1714071043335,-500.0,0.00011232,2]
[323527572,1714071043345,-645.78,0.00011232,2]
[323527573,1714071043355,-3689.08,0.00011232,2]
[323527574,1714071043365,-983.92,0.00011232,2]
[323527575,1714071043374,-1721.31,0.00011232,2]
[323527576,1714071043384,-1072.92,0.00011232,2]
[323527577,1714071043393,-982.34,0.00011232,2]
[323527578,1714071043403,-500.0,0.00011232,2]
[323527579,1714071043413,-500.0,0.00011232,2]
[323527580,1714071043423,-500.0,0.00011232,2]
[323527581,1714071043433,-1854.29,0.00011232,2]
[323527582,1714071043442,-169.43,0.00011232,2]
[323527583,1714071043452,-500.0,0.00011232,2]
[323527584,1714071043462,-500.0,0.00011232,2]
[323527585,1714071043472,-500.0,0.00011232,2]
[323527586,1714071043481,-500.0,0.00011232,2]
[323527587,1714071043493,-8327.2,0.00011232,2]
[323527588,1714071043503,-500.0,0.00011232,2]
[323527589,1714071043517,-1131.15,0.00011232,2]
[323527590,1714071043526,-568.21099376,0.00011232,2]
[323527591,1714071043538,-18700.94,0.00011232,2]
[323527592,1714071043548,-500.0,0.00011232,2]
[323527593,1714071043558,-556.57383948,0.00011232,2]
[323527594,1714071043571,-500.0,0.00011232,2]
[323527595,1714071043581,-1293.68,0.00011232,2]
[323527596,1714071043591,-338.88,0.00011232,2]
[323527597,1714071043601,-702.22,0.00011232,2]
[323527598,1714071043611,-500.0,0.00011232,2]
[323527599,1714071043621,-500.0,0.00011232,2]
[323527600,1714071043631,-500.0,0.00011232,2]
[323527601,1714071043641,-1791.68,0.00011232,2]
[323527602,1714071043653,-7143.68,0.00011232,2]
[323527603,1714071043663,-500.0,0.00011232,2]
[323527604,1714071043672,-500.0,0.00011232,2]
[323527605,1714071043682,-500.0,0.00011232,2]
[323527606,1714071043692,-945.54,0.00011232,2]
[323527607,1714071043702,-722.8,0.00011232,2]
[323527608,1714071043711,-1313.86,0.00011232,2]
[323527609,1714071043721,-500.0,0.00011232,2]
[323527610,1714071043730,-500.0,0.00011232,2]
[323527611,1714071043739,-6092.4,0.00011232,2]
[323527612,1714071043749,-625.57,0.00011232,2]
[323527613,1714071043759,-500.0,0.00011232,2]
[323527614,1714071043769,-500.0,0.00011232,2]
[323527615,1714071043778,-500.0,0.00011232,2]
[323527616,1714071043788,-577.35,0.00011232,2]
[323527617,1714071043798,-1352.06,0.00011232,2]
[323527618,1714071043807,-977.13,0.00011232,2]
[323527619,1714071043818,-500.0,0.00011232,2]
[323527620,1714071043827,-500.0,0.00011232,2]
[323527621,1714071043837,-500.0,0.00011232,2]
[323527622,1714071043846,-1911.81,0.00011232,2]
[323527623,1714071043856,-786.72,0.00011232,2]
[323527624,1714071043865,-500.0,0.00011232,2]
[323527625,1714071043875,-500.0,0.00011232,2]
[323527626,1714071043884,-500.0,0.00011232,2]
[323527627,1714071043893,-779.51,0.00011232,2]
[323527628,1714071043903,-22132.91,0.00011232,2]
[323527629,1714071043912,-500.0,0.00011232,2]
[323527630,1714071043922,-920.68,0.00011232,2]
[323527631,1714071043933,-1046.51,0.00011232,2]
[323527632,1714071043942,-2499.26,0.00011232,2]
[323527633,1714071043953,-500.0,0.00011232,2]
[323527634,1714071043962,-3796.0,0.00011232,2]
[323527635,1714071043972,-656.27,0.00011232,2]
[323527636,1714071043981,-500.0,0.00011232,2]
[323527637,1714071043990,-917.86,0.00011232,2]
[323527638,1714071044000,-500.0,0.00011232,2]
[323527639,1714071044008,-727.65,0.00011232,2]
[323527640,1714071044017,-1061.04,0.00011232,2]
[323527641,1714071044026,-486.56341527,0.00011232,2]
[323527642,1714071044036,-682.39,0.00011232,2]
[323527643,1714071044045,-4368.13,0.00011232,2]
[323527644,1714071044054,-997.9,0.00011232,2]
[323527645,1714071044064,-1250.16,0.00011232,2]
[323527646,1714071044073,-500.0,0.00011232,2]
[323527647,1714071044082,-1295.12,0.00011232,2]
[323527648,1714071044091,-804.09,0.00011232,2]
[323527649,1714071044101,-801.02,0.00011232,2]
[323527650,1714071044110,-500.0,0.00011232,2]
[323527651,1714071044119,-2819.01,0.00011232,2]
[323527652,1714071044128,-500.0,0.00011232,2]
[323527653,1714071044138,-977.5,0.00011232,2]
[323527654,1714071044147,-500.0,0.00011232,2]
[323527655,1714071044157,-500.0,0.00011232,2]
[323527656,1714071044166,-553.99,0.00011232,2]
[323527657,1714071044176,-500.0,0.00011232,2]
[323527658,1714071044186,-819.94,0.00011232,2]
[323527659,1714071044195,-1420.99,0.00011232,2]
[323527660,1714071044204,-820.21,0.00011232,2]
[323527661,1714071044213,-922.82,0.00011232,2]
[323527662,1714071044223,-2659.68,0.00011232,2]
[323527663,1714071044232,-500.0,0.00011232,2]
[323527664,1714071044241,-500.0,0.00011232,2]
[323527665,1714071044251,-500.0,0.00011232,2]
[323527666,1714071044261,-666.76,0.00011232,2]
[323527667,1714071044270,-500.0,0.00011232,2]
[323527668,1714071044279,-920.95,0.00011232,2]
[323527669,1714071044289,-1578.68631,0.00011232,2]
[323527670,1714071044300,-837.73,0.00011232,2]
[323527671,1714071044310,-764.71,0.00011232,2]
[323527672,1714071044320,-675.69,0.00011232,2]
[323527673,1714071044328,-748.77,0.00011232,2]
[323527674,1714071044338,-504.13,0.00011232,2]
[323527675,1714071044347,-500.0,0.00011232,2]
[323527676,1714071044358,-601.3,0.00011232,2]
[323527677,1714071044367,-500.0,0.00011232,2]
[323527678,1714071044376,-649.58,0.00011232,2]
[323527679,1714071044386,-743.42,0.00011232,2]
[323527680,1714071044396,-1134.27,0.00011232,2]
[323527681,1714071044407,-784.56,0.00011232,2]
[323527682,1714071044416,-500.0,0.00011232,2]
[323527683,1714071044426,-2160.82,0.00011232,2]
[323527684,1714071044437,-845.59,0.00011232,2]
[323527685,1714071044446,-3725.63,0.00011232,2]
[323527686,1714071044458,-500.0,0.00011232,2]
[323527687,1714071044468,-3001.03,0.00011232,2]
[323527688,1714071044477,-2102.35,0.00011232,2]
[323527689,1714071044486,-500.0,0.00011232,2]
[323527690,1714071044498,-500.0,0.00011232,2]
[323527691,1714071044507,-1267.7,0.00011232,2]
[323527692,1714071044517,-500.0,0.00011232,2]
[323527693,1714071044527,-500.0,0.00011232,2]
[323527694,1714071044537,-500.0,0.00011232,2]
[323527695,1714071044546,-649.49,0.00011232,2]
[323527696,1714071044556,-1271.79,0.00011232,2]
[323527697,1714071044567,-639.66,0.00011232,2]
[323527698,1714071044577,-1507.93,0.00011232,2]
[323527699,1714071044587,-1998.88,0.00011232,2]
[323527700,1714071044597,-500.0,0.00011232,2]
[323527701,1714071044606,-1251.65,0.00011232,2]
[323527702,1714071044615,-2251.83,0.00011232,2]
[323527703,1714071044625,-558.59,0.00011232,2]
[323527704,1714071044634,-500.0,0.00011232,2]
[323527705,1714071044643,-502.79,0.00011232,2]
[323527706,1714071044653,-500.0,0.00011232,2]
[323527707,1714071044663,-500.0,0.00011232,2]
[323527708,1714071044672,-795.95,0.00011232,2]
[323527709,1714071044682,-744.15,0.00011232,2]
[323527710,1714071044691,-3742.98,0.00011232,2]
[323527711,1714071044701,-500.0,0.00011232,2]
[323527712,1714071044713,-2249.06,0.00011232,2]
[323527713,1714071044723,-2736.05,0.00011232,2]
[323527714,1714071044733,-500.0,0.00011232,2]
[323527715,1714071044742,-1006.22,0.00011232,2]
[323527716,1714071044752,-514.93,0.00011232,2]
[323527717,1714071044762,-500.0,0.00011232,2]
[323527718,1714071044771,-500.0,0.00011232,2]
[323527719,1714071044780,-543.04147978,0.00011232,2]
[323527720,1714071044790,-500.0,0.00011232,2]
[323527721,1714071044799,-395.03,0.00011232,2]
[323527722,1714071044809,-975.66,0.00011232,2]
[323527723,1714071044818,-1176.96,0.00011232,2]
[323527724,1714071044828,-780.41,0.00011232,2]
[323527725,1714071044838,-877.33,0.00011232,2]
[323527726,1714071044848,-993.85,0.00011232,2]
[323527727,1714071044858,-500.0,0.00011232,2]
[323527728,1714071044867,-467.89078428,0.00011232,2]
[323527729,1714071044877,-500.0,0.00011232,2]
[323527730,1714071044886,-500.0,0.00011232,2]
[323527731,1714071044896,-601.36,0.00011232,2]
[323527732,1714071044905,-2900.0,0.000113,4]
[323527733,1714071044914,-1800.0,0.000113,4]
[323527734,1714071044924,-368.92034519,0.00011324,2]
[323527735,1714071044933,-150.0,0.0001137,2]
[323527736,1714071044942,-150.0,0.0001137,2]
[323527737,1714071044951,-150.0,0.0001137,2]
[323527738,1714071044961,-150.0,0.000114,2]
[323527739,1714071044971,-3900.0,0.000114,4]
[323527740,1714071044980,-2500.0,0.000114,4]
[323527741,1714071044989,-446.51581407,0.00011406,2]
[323527742,1714071044999,-244.84954247,0.00011406,2]
[323527743,1714071045008,-4900.0,0.000115,4]
[323527744,1714071045018,-3100.0,0.000115,4]
[323527745,1714071045028,-1009.21,0.00011505,2]
[323527746,1714071045037,-593.53,0.00011505,2]
[323527747,1714071045047,-735.17,0.00011505,2]
[323527748,1714071045058,-500.0,0.00011505,2]
[323527749,1714071045067,-500.0,0.00011505,2]
[323527750,1714071045076,-1394.16,0.00011505,2]
[323527751,1714071045086,-617.14,0.00011505,2]
[323527752,1714071045095,-1411.66,0.00011505,2]
[323527753,1714071045106,-559.65,0.00011505,2]
[323527754,1714071045116,-523.01,0.00011505,2]
[323527755,1714071045127,-1171.84,0.00011505,2]
[323527756,1714071045137,-863.13,0.00011505,2]
[323527757,1714071045205,-500.0,0.00011505,2]
[323527758,1714071045215,-653.09,0.00011505,2]
[323527759,1714071045226,-1369.63,0.00011505,2]
[323527760,1714071045235,-753.77,0.00011505,2]
[323527761,1714071045245,-567.0,0.00011506,2]
[323527762,1714071045256,-500.0,0.00011506,2]
[323527763,1714071045265,-361.05490783,0.00011506,2]
[323527764,1714071045274,-500.0,0.00011506,2]
[323527765,1714071045284,-500.0,0.00011506,2]
[323527766,1714071045294,-500.0,0.00011506,2]
[323527767,1714071045303,-500.0,0.00011506,2]
[323527768,1714071045312,-500.0,0.00011506,2]
[323527769,1714071045322,-151.0,0.00011506,2]
[323527770,1714071045331,-500.0,0.00011506,2]
[323527771,1714071045343,-610.45,0.00011506,2]
[323527772,1714071045352,-157.23825098,0.00011506,2]
[323527773,1714071045362,-500.0,0.00011506,2]
[323527774,1714071045371,-500.0,0.00011506,2]
[323527775,1714071045381,-649.73,0.00011506,2]
[323527776,1714071045390,-500.0,0.00011506,2]
[323527777,1714071045399,-500.0,0.00011506,2]
[323527778,1714071045408,-172.71,0.00011506,2]
[323527779,1714071045418,-688.12,0.00011506,2]
[323527780,1714071045427,-500.0,0.00011506,2]
[323527781,1714071045439,-779.77,0.00011506,2]
[323527782,1714071045448,-500.0,0.00011506,2]
[323527783,1714071045458,-695.13,0.00011506,2]
[323527784,1714071045469,-500.0,0.00011506,2]
[323527785,1714071045479,-500.0,0.00011506,2]
[323527786,1714071045488,-539.24,0.00011506,2]
[323527787,1714071045500,-500.0,0.00011506,2]
[323527788,1714071045510,-681.29,0.00011506,2]
[323527789,1714071045519,-500.0,0.00011506,2]
[323527790,1714071045528,-634.39,0.00011506,2]
[323527791,1714071045538,-500.0,0.00011506,2]
[323527792,1714071045546,-500.0,0.00011506,2]
[323527793,1714071045556,-500.0,0.00011506,2]
[323527794,1714071045566,-500.0,0.00011506,2]
[323527795,1714071045577,-707.13,0.00011506,2]
[323527796,1714071045587,-500.0,0.00011506,2]
[323527797,1714071045597,-541.87,0.00011506,2]
[323527798,1714071045607,-500.0,0.00011506,2]
[323527799,1714071045616,-500.0,0.00011506,2]
[323527800,1714071045625,-500.0,0.00011506,2]
[323527801,1714071045635,-873.91,0.00011506,2]
[323527802,1714071045644,-655.18,0.00011506,2]
[323527803,1714071045653,-500.0,0.00011506,2]
[323527804,1714071045663,-697.1,0.00011506,2]
[323527805,1714071045672,-500.0,0.00011506,2]
[323527806,1714071045682,-500.0,0.00011506,2]
[323527807,1714071045691,-500.0,0.00011506,2]
[323527808,1714071045702,-500.0,0.00011506,2]
[323527809,1714071045713,-500.0,0.00011506,2]
[323527810,1714071045723,-500.0,0.00011506,2]
[323527811,1714071045733,-340.66,0.00011506,2]
[323527812,1714071045743,-500.0,0.00011506,2]
[323527813,1714071045752,-769.99,0.00011506,2]
[323527814,1714071045761,-586.62,0.00011506,2]
[323527815,1714071045771,-500.0,0.00011506,2]
[323527816,1714071045780,-356.22,0.00011506,2]
[323527817,1714071045790,-672.29,0.00011506,2]
[323527818,1714071045799,-880.8,0.00011506,2]
[323527819,1714071045811,-500.0,0.00011506,2]
[323527820,1714071045821,-667.59,0.00011506,2]
[323527821,1714071045830,-500.0,0.00011506,2]
[323527822,1714071045839,-512.43,0.00011506,2]
[323527823,1714071045849,-500.0,0.00011506,2]
[323527824,1714071045858,-150.0,0.00011506,2]
[323527825,1714071045868,-500.0,0.00011506,2]
[323527826,1714071045877,-550.22,0.00011506,2]
[323527827,1714071045886,-500.0,0.00011506,2]
[323527828,1714071045895,-151.000001,0.00011506,2]
[323527829,1714071045904,-500.0,0.00011506,2]
[323527830,1714071045913,-500.0,0.00011506,2]
[323527831,1714071045923,-500.0,0.00011506,2]
[323527832,1714071045932,-500.0,0.00011506,2]
[323527833,1714071045941,-359.61,0.00011506,2]
[323527834,1714071045950,-553.94,0.00011506,2]
[323527835,1714071045959,-151.0,0.00011506,2]
[323527836,1714071045968,-151.0,0.00011506,2]
[323527838,1714071045977,-500.0,0.00011506,2]
[323527839,1714071045986,-500.0,0.00011506,2]
[323527840,1714071045995,-151.0,0.00011506,2]
[323527841,1714071046004,-155.622756,0.00011506,2]
[323527842,1714071046013,-662.77,0.00011506,2]
[323527843,1714071046022,-500.0,0.00011506,2]
[323527844,1714071046032,-721.74,0.00011506,2]
[323527845,1714071046041,-841.6,0.00011506,2]
[323527846,1714071046050,-500.0,0.00011506,2]
[323527847,1714071046061,-550.03,0.00011506,2]
[323527848,1714071046070,-500.0,0.00011506,2]
[323527849,1714071046079,-500.0,0.00011506,2]
[323527850,1714071046089,-775.82,0.00011506,2]
[323527851,1714071046100,-282.00221196,0.00011506,2]
[323527852,1714071046110,-500.0,0.00011506,2]
[323527853,1714071046121,-4132.01,0.00011506,2]
[323527854,1714071046132,-4781.68,0.00011506,2]
[323527855,1714071046141,-500.0,0.00011506,2]
[323527856,1714071046150,-556.67,0.00011506,2]
[323527857,1714071046159,-499.82,0.00011506,2]
[323527858,1714071046168,-645.78,0.00011506,2]
[323527859,1714071046177,-3689.08,0.00011506,2]
[323527860,1714071046186,-983.92,0.00011506,2]
[323527861,1714071046195,-1721.31,0.00011506,2]
[323527862,1714071046205,-1072.92,0.00011506,2]
[323527863,1714071046214,-982.34,0.00011506,2]
[323527864,1714071046223,-500.0,0.00011506,2]
[323527865,1714071046232,-500.0,0.00011506,2]
[323527866,1714071046241,-500.0,0.00011506,2]
[323527867,1714071046250,-1854.29,0.00011506,2]
[323527868,1714071046259,-500.0,0.00011506,2]
[323527869,1714071046269,-500.0,0.00011506,2]
[323527870,1714071046278,-500.0,0.00011506,2]
[323527871,1714071046287,-500.0,0.00011506,2]
[323527872,1714071046297,-8327.2,0.00011506,2]
[323527873,1714071046307,-500.0,0.00011506,2]
[323527874,1714071046317,-1131.15,0.00011506,2]
[323527875,1714071046328,-18700.94,0.00011506,2]
[323527876,1714071046338,-500.0,0.00011506,2]
[323527877,1714071046349,-577.85964036,0.00011506,2]
[323527878,1714071046358,-1293.68,0.00011506,2]
[323527879,1714071046368,-702.22,0.00011506,2]
[323527880,1714071046378,-500.0,0.00011506,2]
[323527881,1714071046387,-500.0,0.00011506,2]
[323527882,1714071046396,-500.0,0.00011506,2]
[323527883,1714071046405,-1791.68,0.00011506,2]
[323527884,1714071046414,-7143.68,0.00011506,2]
[323527885,1714071046424,-500.0,0.00011506,2]
[323527886,1714071046433,-500.0,0.00011506,2]
[323527887,1714071046442,-500.0,0.00011506,2]
[323527888,1714071046453,-945.54,0.00011506,2]
[323527889,1714071046464,-722.8,0.00011506,2]
[323527890,1714071046473,-1313.86,0.00011506,2]
[323527891,1714071046483,-500.0,0.00011506,2]
[323527892,1714071046493,-500.0,0.00011506,2]
[323527893,1714071046506,-6092.4,0.00011506,2]
[323527894,1714071046516,-625.57,0.00011506,2]
[323527895,1714071046525,-500.0,0.00011506,2]
[323527896,1714071046535,-500.0,0.00011506,2]
[323527897,1714071046545,-500.0,0.00011506,2]
[323527898,1714071046554,-577.35,0.00011506,2]
[323527899,1714071046567,-1352.06,0.00011506,2]
[323527900,1714071046576,-977.13,0.00011506,2]
[323527901,1714071046585,-500.0,0.00011506,2]
[323527902,1714071046594,-500.0,0.00011506,2]
[323527903,1714071046603,-500.0,0.00011506,2]
[323527904,1714071046613,-1911.81,0.00011506,2]
[323527905,1714071046622,-786.72,0.00011506,2]
[323527906,1714071046632,-500.0,0.00011506,2]
[323527907,1714071046641,-500.0,0.00011506,2]
[323527908,1714071046651,-563.46569539,0.00011506,2]
[323527909,1714071046661,-779.51,0.00011506,2]
[323527910,1714071046671,-22132.91,0.00011506,2]
[323527911,1714071046680,-920.68,0.00011506,2]
[323527912,1714071046690,-1046.51,0.00011506,2]
[323527913,1714071046699,-2499.26,0.00011506,2]
[323527914,1714071046709,-500.0,0.00011506,2]
[323527915,1714071046719,-3796.0,0.00011506,2]
[323527916,1714071046728,-656.27,0.00011506,2]
[323527917,1714071046738,-500.0,0.00011506,2]
[323527918,1714071046748,-917.86,0.00011506,2]
[323527919,1714071046757,-500.0,0.00011506,2]
[323527920,1714071046767,-727.65,0.00011506,2]
[323527921,1714071046777,-1061.04,0.00011506,2]
[323527922,1714071046787,-682.39,0.00011506,2]
[323527923,1714071046798,-4368.13,0.00011506,2]
[323527924,1714071046808,-997.9,0.00011506,2]
[323527925,1714071046818,-1250.16,0.00011506,2]
[323527926,1714071046828,-167.74126905,0.00011506,2]
[323527927,1714071046837,-1295.12,0.00011506,2]
[323527928,1714071046847,-804.09,0.00011506,2]
[323527929,1714071046857,-801.02,0.00011506,2]
[323527930,1714071046866,-2819.01,0.00011506,2]
[323527931,1714071046876,-497.25041268,0.00011506,2]
[323527932,1714071046886,-977.5,0.00011506,2]
[323527933,1714071046895,-536.56,0.00011506,2]
[323527934,1714071046905,-500.0,0.00011506,2]
[323527935,1714071046914,-553.99,0.00011506,2]
[323527936,1714071046924,-500.0,0.00011506,2]
[323527937,1714071046933,-819.94,0.00011506,2]
[323527938,1714071046942,-1420.99,0.00011506,2]
[323527939,1714071046952,-820.21,0.00011506,2]
[323527940,1714071046961,-922.82,0.00011506,2]
[323527941,1714071046970,-2659.68,0.00011506,2]
[323527942,1714071046980,-500.0,0.00011506,2]
[323527943,1714071046990,-500.0,0.00011506,2]
[323527944,1714071047000,-500.0,0.00011506,2]
[323527945,1714071047009,-666.76,0.00011506,2]
[323527946,1714071047018,-500.0,0.00011506,2]
[323527947,1714071047028,-920.95,0.00011506,2]
[323527948,1714071047037,-837.73,0.00011506,2]
[323527949,1714071047047,-764.71,0.00011506,2]
[323527950,1714071047059,-675.69,0.00011506,2]
[323527951,1714071047068,-748.77,0.00011506,2]
[323527952,1714071047077,-504.13,0.00011506,2]
[323527953,1714071047087,-500.0,0.00011506,2]
[323527954,1714071047096,-601.3,0.00011506,2]
[323527955,1714071047106,-649.58,0.00011506,2]
[323527956,1714071047115,-743.42,0.00011506,2]
[323527957,1714071047124,-1134.27,0.00011506,2]
[323527958,1714071047134,-500.0,0.00011506,2]
[323527959,1714071047144,-784.56,0.00011506,2]
[323527960,1714071047153,-2160.82,0.00011506,2]
[323527961,1714071047163,-845.59,0.00011506,2]
[323527962,1714071047172,-3725.63,0.00011506,2]
[323527963,1714071047182,-500.0,0.00011506,2]
[323527964,1714071047192,-3001.03,0.00011506,2]
[323527965,1714071047201,-2102.35,0.00011506,2]
[323527966,1714071047211,-500.0,0.00011506,2]
[323527967,1714071047220,-608.3,0.00011506,2]
[323527968,1714071047230,-1267.7,0.00011506,2]